[Event "Live Chess"]
[Site "Chess.com"]
[Date "2023.05.21"]
[Round "-"]
[White "domrobson"]
[Black "Rusty_Bridges"]
[Result "1-0"]
[WhiteElo "1703"]
[BlackElo "1504"]
[TimeControl "300"]
[EndTime "3:29:33 PDT"]
[Termination "domrobson won by resignation"]

1. d4 {[%clk 0:04:58.6]} 1... d5 {[%clk 0:04:58.3]} 2. c4 {[%clk 0:04:58]} 2...
e6 {[%clk 0:04:56.7]} 3. Nf3 {[%clk 0:04:57.5]} 3... Nf6 {[%clk 0:04:54.9]} 4.
Nc3 {[%clk 0:04:57.1]} 4... Bb4 {[%clk 0:04:52.5]} 5. Bg5 {[%clk 0:04:56.6]}
5... h6 {[%clk 0:04:50.1]} 6. Bxf6 {[%clk 0:04:54.9]} 6... Qxf6 {[%clk
0:04:49.1]} 7. e3 {[%clk 0:04:54.3]} 7... Nd7 {[%clk 0:04:42.4]} 8. Ne5 {[%clk
0:04:51.2]} 8... Nxe5 {[%clk 0:04:40.5]} 9. dxe5 {[%clk 0:04:50.1]} 9... Qxe5
{[%clk 0:04:39.3]} 10. Qa4+ {[%clk 0:04:48.2]} 10... c6 {[%clk 0:04:32.7]} 11.
Qxb4 {[%clk 0:04:47.4]} 11... f5 {[%clk 0:04:20.4]} 12. Be2 {[%clk 0:04:45.8]}
12... f4 {[%clk 0:04:19.1]} 13. exf4 {[%clk 0:04:44.1]} 13... Qxf4 {[%clk
0:04:18.2]} 14. O-O {[%clk 0:04:42.3]} 14... h5 {[%clk 0:04:09.9]} 15. g3 {[%clk
0:04:39.5]} 15... Qf5 {[%clk 0:04:02.4]} 16. cxd5 {[%clk 0:04:37.7]} 16... cxd5
{[%clk 0:03:56.9]} 17. Bb5+ {[%clk 0:04:35.5]} 17... Bd7 {[%clk 0:03:54.8]} 18.
Rfe1 {[%clk 0:04:33.7]} 18... h4 {[%clk 0:03:51.8]} 19. Bxd7+ {[%clk 0:04:30.9]}
19... Kxd7 {[%clk 0:03:49.5]} 20. Qxb7+ {[%clk 0:04:30.5]} 20... Kd6 {[%clk
0:03:46.4]} 21. Nb5+ {[%clk 0:04:27.9]} 21... Kc5 {[%clk 0:03:44.2]} 22. Rac1+
{[%clk 0:04:25]} 1-0

[Event "Live Chess"]
[Site "Chess.com"]
[Date "2023.05.21"]
[Round "-"]
[White "nigelst"]
[Black "Shepherds_Pie"]
[Result "0-1"]
[WhiteElo "1708"]
[BlackElo "1939"]
[TimeControl "300"]
[EndTime "3:29:45 PDT"]
[Termination "Shepherds_Pie won by resignation"]

1. e4 {[%clk 0:04:58.4]} 1... e6 {[%clk 0:04:58.9]} 2. d4 {[%clk 0:04:56.8]}
2... d5 {[%clk 0:04:58]} 3. exd5 {[%clk 0:04:55.1]} 3... exd5 {[%clk 0:04:56.9]}
4. Nf3 {[%clk 0:04:54.1]} 4... Nc6 {[%clk 0:04:56.1]} 5. Bd3 {[%clk 0:04:51.8]}
5... Bd6 {[%clk 0:04:54.9]} 6. Qe2+ {[%clk 0:04:48.8]} 6... Nge7 {[%clk
0:04:53.6]} 7. O-O {[%clk 0:04:43.7]} 7... O-O {[%clk 0:04:52.5]} 8. Bxh7+
{[%clk 0:04:34.2]} 8... Kxh7 {[%clk 0:04:51]} 9. Ng5+ {[%clk 0:04:33.4]} 9...
Kg8 {[%clk 0:04:44.9]} 10. Qh5 {[%clk 0:04:31.1]} 10... Bf5 {[%clk 0:04:43.8]}
11. Nc3 {[%clk 0:04:16.6]} 11... Bg6 {[%clk 0:04:41.6]} 12. Qg4 {[%clk
0:04:14.9]} 12... Nf5 {[%clk 0:04:36.2]} 13. Be3 {[%clk 0:03:58.3]} 13... Nce7
{[%clk 0:04:11.4]} 14. h4 {[%clk 0:03:50.7]} 14... Nh6 {[%clk 0:04:04.3]} 15.
Qe2 {[%clk 0:03:42.3]} 15... Qd7 {[%clk 0:03:59.1]} 16. h5 {[%clk 0:03:36.9]}
16... Bf5 {[%clk 0:03:57.6]} 17. Nf3 {[%clk 0:03:16.9]} 17... Bg4 {[%clk
0:03:51.9]} 18. Bxh6 {[%clk 0:03:15.2]} 18... gxh6 {[%clk 0:03:50.6]} 19. Qe3
{[%clk 0:03:10.1]} 19... Qe6 {[%clk 0:03:44.9]} 20. Qd3 {[%clk 0:02:57.7]} 20...
Qf5 {[%clk 0:03:41.9]} 21. Qe3 {[%clk 0:02:56.2]} 21... Bxf3 {[%clk 0:03:39.2]}
22. gxf3 {[%clk 0:02:52.5]} 22... Kh7 {[%clk 0:03:37.3]} 0-1

[Event "Live Chess"]
[Site "Chess.com"]
[Date "2023.05.21"]
[Round "-"]
[White "chessfiction"]
[Black "wot-not"]
[Result "1-0"]
[WhiteElo "2319"]
[BlackElo "1557"]
[TimeControl "300"]
[EndTime "3:29:51 PDT"]
[Termination "chessfiction won by checkmate"]

1. e4 {[%clk 0:04:59.5]} 1... e6 {[%clk 0:04:58.1]} 2. d4 {[%clk 0:04:58.5]}
2... d5 {[%clk 0:04:57]} 3. Nc3 {[%clk 0:04:58]} 3... Nf6 {[%clk 0:04:55.4]} 4.
e5 {[%clk 0:04:57]} 4... Nfd7 {[%clk 0:04:54.1]} 5. Nce2 {[%clk 0:04:56.6]} 5...
c5 {[%clk 0:04:53.6]} 6. c3 {[%clk 0:04:56.5]} 6... cxd4 {[%clk 0:04:52.7]} 7.
cxd4 {[%clk 0:04:54.3]} 7... Nc6 {[%clk 0:04:52.3]} 8. f4 {[%clk 0:04:53.3]}
8... Be7 {[%clk 0:04:45.7]} 9. Nf3 {[%clk 0:04:52.3]} 9... h6 {[%clk 0:04:43]}
10. g3 {[%clk 0:04:49.7]} 10... g5 {[%clk 0:04:40.5]} 11. Bg2 {[%clk 0:04:45]}
11... g4 {[%clk 0:04:31.7]} 12. Nh4 {[%clk 0:04:39.7]} 12... Qa5+ {[%clk
0:04:23.9]} 13. Bd2 {[%clk 0:04:36.4]} 13... Qb6 {[%clk 0:04:23.6]} 14. Be3
{[%clk 0:04:29.6]} 14... Nf8 {[%clk 0:04:13.8]} 15. O-O {[%clk 0:04:27.8]} 15...
Ng6 {[%clk 0:04:12]} 16. Nxg6 {[%clk 0:04:20.2]} 16... fxg6 {[%clk 0:04:11.1]}
17. Qd3 {[%clk 0:04:19.1]} 17... Kf7 {[%clk 0:04:07]} 18. Nc3 {[%clk 0:04:11.7]}
18... Bd7 {[%clk 0:03:55.5]} 19. Nxd5 {[%clk 0:04:09.2]} 19... exd5 {[%clk
0:03:53.6]} 20. Bxd5+ {[%clk 0:04:08.1]} 20... Kg7 {[%clk 0:03:51.2]} 21. e6
{[%clk 0:03:59.3]} 21... Be8 {[%clk 0:03:37.1]} 22. f5 {[%clk 0:03:56.6]} 22...
Rd8 {[%clk 0:03:24.1]} 23. Qe4 {[%clk 0:03:42]} 23... gxf5 {[%clk 0:03:06.4]}
24. Rxf5 {[%clk 0:03:37.6]} 24... Bg6 {[%clk 0:03:05.6]} 25. Qxg4 {[%clk
0:03:31.7]} 25... Qxb2 {[%clk 0:02:54.4]} 26. Rf7+ {[%clk 0:03:29.4]} 26... Kg8
{[%clk 0:02:42.3]} 27. Qxg6# {[%clk 0:03:29.3]} 1-0

[Event "Live Chess"]
[Site "Chess.com"]
[Date "2023.05.21"]
[Round "-"]
[White "EdenHazard8"]
[Black "SupremeTactician"]
[Result "0-1"]
[WhiteElo "1953"]
[BlackElo "2219"]
[TimeControl "300"]
[EndTime "3:30:04 PDT"]
[Termination "SupremeTactician won by resignation"]

1. e4 {[%clk 0:04:58.5]} 1... e5 {[%clk 0:04:59]} 2. Nf3 {[%clk 0:04:57.4]} 2...
Nc6 {[%clk 0:04:55.2]} 3. Bb5 {[%clk 0:04:56.7]} 3... a6 {[%clk 0:04:54.4]} 4.
Ba4 {[%clk 0:04:55.9]} 4... Nf6 {[%clk 0:04:53.6]} 5. O-O {[%clk 0:04:54.7]}
5... Nxe4 {[%clk 0:04:53]} 6. d4 {[%clk 0:04:53.9]} 6... Be7 {[%clk 0:04:51.9]}
7. Re1 {[%clk 0:04:51.6]} 7... b5 {[%clk 0:04:50.9]} 8. Rxe4 {[%clk 0:04:48]}
8... d5 {[%clk 0:04:50.6]} 9. Re1 {[%clk 0:04:33.7]} 9... bxa4 {[%clk
0:04:48.1]} 10. Nxe5 {[%clk 0:04:32.4]} 10... Nxe5 {[%clk 0:04:47.3]} 11. Rxe5
{[%clk 0:04:32.3]} 11... O-O {[%clk 0:04:45.9]} 12. c3 {[%clk 0:04:26.9]} 12...
Bd6 {[%clk 0:04:44.2]} 13. Re1 {[%clk 0:04:20.7]} 13... Bf5 {[%clk 0:04:35.9]}
14. Nd2 {[%clk 0:04:15.1]} 14... Re8 {[%clk 0:04:28.6]} 15. Nf1 {[%clk
0:04:11.2]} 15... Rxe1 {[%clk 0:04:23.8]} 16. Qxe1 {[%clk 0:04:11.1]} 16... Qd7
{[%clk 0:04:22.6]} 17. Ng3 {[%clk 0:04:08.1]} 17... Bg6 {[%clk 0:04:15.2]} 18.
Be3 {[%clk 0:04:02.4]} 18... Re8 {[%clk 0:04:13.3]} 19. Qd2 {[%clk 0:04:01.4]}
19... h6 {[%clk 0:04:08]} 20. Re1 {[%clk 0:03:52.2]} 20... a3 {[%clk 0:03:59.1]}
21. b3 {[%clk 0:03:45.5]} 21... Kh7 {[%clk 0:03:51.6]} 22. Qe2 {[%clk
0:03:36.8]} 22... Qb5 {[%clk 0:03:38.5]} 23. c4 {[%clk 0:03:33.9]} 23... dxc4
{[%clk 0:03:37.1]} 24. bxc4 {[%clk 0:03:33.8]} 24... Qb2 {[%clk 0:03:35.9]} 25.
c5 {[%clk 0:03:29.8]} 25... Bxg3 {[%clk 0:03:31.8]} 26. hxg3 {[%clk 0:03:26.7]}
26... Rb8 {[%clk 0:03:16]} 27. Qxa6 {[%clk 0:03:10.2]} 27... Qxa2 {[%clk
0:03:05.8]} 28. Bc1 {[%clk 0:03:03.6]} 28... Rb1 {[%clk 0:03:00]} 29. Qf1 {[%clk
0:02:36.1]} 29... Qb3 {[%clk 0:02:36]} 30. d5 {[%clk 0:01:58.3]} 30... Bd3
{[%clk 0:02:32]} 31. Re3 {[%clk 0:01:49.4]} 31... Bxf1 {[%clk 0:02:28.7]} 0-1

[Event "Live Chess"]
[Site "Chess.com"]
[Date "2023.05.21"]
[Round "-"]
[White "Reggie016"]
[Black "Abde2012"]
[Result "1-0"]
[WhiteElo "1121"]
[BlackElo "736"]
[TimeControl "300"]
[EndTime "3:30:09 PDT"]
[Termination "Reggie016 won by checkmate"]

1. e4 {[%clk 0:04:59.4]} 1... c6 {[%clk 0:04:56.7]} 2. d4 {[%clk 0:04:58.5]}
2... d6 {[%clk 0:04:56]} 3. Nc3 {[%clk 0:04:58.4]} 3... d5 {[%clk 0:04:55]} 4.
Nf3 {[%clk 0:04:46]} 4... Bg4 {[%clk 0:04:49.4]} 5. Be2 {[%clk 0:04:45]} 5...
Nf6 {[%clk 0:04:46.2]} 6. h3 {[%clk 0:04:44.5]} 6... Bxf3 {[%clk 0:04:43.9]} 7.
Bxf3 {[%clk 0:04:43.6]} 7... e6 {[%clk 0:04:36.9]} 8. Bg5 {[%clk 0:04:42.9]}
8... Bb4 {[%clk 0:04:34.9]} 9. e5 {[%clk 0:04:36]} 9... Bxc3+ {[%clk 0:04:31.2]}
10. bxc3 {[%clk 0:04:35.1]} 10... h6 {[%clk 0:04:29.3]} 11. exf6 {[%clk
0:04:29.5]} 11... hxg5 {[%clk 0:04:26.2]} 12. fxg7 {[%clk 0:04:28.6]} 12... Rg8
{[%clk 0:04:25.2]} 13. Rb1 {[%clk 0:04:15.1]} 13... Qc7 {[%clk 0:04:14.7]} 14.
O-O {[%clk 0:04:02]} 14... Rxg7 {[%clk 0:04:12.8]} 15. Bh5 {[%clk 0:04:00.2]}
15... Rh7 {[%clk 0:04:09.3]} 16. Qg4 {[%clk 0:03:56.8]} 16... Ke7 {[%clk
0:03:59.4]} 17. Rfe1 {[%clk 0:03:55.2]} 17... f5 {[%clk 0:03:57.2]} 18. Qxf5
{[%clk 0:03:50.1]} 18... Rxh5 {[%clk 0:03:52.8]} 19. Qxe6+ {[%clk 0:03:47.4]}
19... Kd8 {[%clk 0:03:51.4]} 20. Qf6+ {[%clk 0:03:38.4]} 20... Kd7 {[%clk
0:03:43.8]} 21. Re7+ {[%clk 0:03:36.9]} 21... Kd8 {[%clk 0:03:29.8]} 22. Qf8#
{[%clk 0:03:31.1]} 1-0

[Event "Live Chess"]
[Site "Chess.com"]
[Date "2023.05.21"]
[Round "-"]
[White "Keithdfg"]
[Black "NicuMarBo"]
[Result "1-0"]
[WhiteElo "1773"]
[BlackElo "1036"]
[TimeControl "300"]
[EndTime "3:30:26 PDT"]
[Termination "Keithdfg won on time"]

1. Nf3 {[%clk 0:04:57.3]} 1... c5 {[%clk 0:04:52.3]} 2. d3 {[%clk 0:04:57.1]}
2... Nc6 {[%clk 0:04:51.6]} 3. Nbd2 {[%clk 0:04:53.1]} 3... d5 {[%clk
0:04:48.2]} 4. e4 {[%clk 0:04:53]} 4... dxe4 {[%clk 0:04:37.8]} 5. dxe4 {[%clk
0:04:50.5]} 5... Bg4 {[%clk 0:04:35.7]} 6. c3 {[%clk 0:04:49.4]} 6... Nf6 {[%clk
0:04:11.2]} 7. Bc4 {[%clk 0:04:43.4]} 7... Qc7 {[%clk 0:03:53.8]} 8. h3 {[%clk
0:04:26.2]} 8... O-O-O {[%clk 0:03:52.4]} 9. hxg4 {[%clk 0:04:24.2]} 9... Nxg4
{[%clk 0:03:40.9]} 10. Bxf7 {[%clk 0:04:22]} 10... g6 {[%clk 0:02:58.1]} 11.
Be6+ {[%clk 0:04:16.4]} 11... Kb8 {[%clk 0:02:53.9]} 12. Bxg4 {[%clk 0:04:15.1]}
12... Qf4 {[%clk 0:02:46.9]} 13. Be6 {[%clk 0:04:06.5]} 13... Ne5 {[%clk
0:02:25.1]} 14. Bd5 {[%clk 0:03:58.6]} 14... Nd3+ {[%clk 0:02:02.9]} 15. Kf1
{[%clk 0:03:56.9]} 15... Bh6 {[%clk 0:01:31.5]} 16. g3 {[%clk 0:03:40.7]} 16...
Nxf2 {[%clk 0:00:42.7]} 17. gxf4 {[%clk 0:03:29.8]} 17... Nxd1 {[%clk
0:00:35.9]} 18. Rxh6 {[%clk 0:03:28.1]} 18... Rhf8 {[%clk 0:00:33.1]} 19. Nc4
{[%clk 0:03:22.4]} 19... g5 {[%clk 0:00:18.5]} 20. f5 {[%clk 0:03:19.9]} 20...
b5 {[%clk 0:00:10.8]} 21. Nce5 {[%clk 0:03:17]} 1-0

[Event "Live Chess"]
[Site "Chess.com"]
[Date "2023.05.21"]
[Round "-"]
[White "lateforthesky"]
[Black "Greenbecker"]
[Result "1-0"]
[WhiteElo "2108"]
[BlackElo "1656"]
[TimeControl "300"]
[EndTime "3:30:41 PDT"]
[Termination "lateforthesky won by resignation"]

1. e4 {[%clk 0:04:58]} 1... e6 {[%clk 0:04:56.7]} 2. d4 {[%clk 0:04:48.8]} 2...
d5 {[%clk 0:04:35.9]} 3. e5 {[%clk 0:04:46.2]} 3... c5 {[%clk 0:04:34.7]} 4. c3
{[%clk 0:04:44.4]} 4... Nc6 {[%clk 0:04:33.8]} 5. Nf3 {[%clk 0:04:43.5]} 5...
cxd4 {[%clk 0:04:31.2]} 6. cxd4 {[%clk 0:04:40.7]} 6... Qb6 {[%clk 0:04:27.4]}
7. Nc3 {[%clk 0:04:28.4]} 7... Bd7 {[%clk 0:04:25.5]} 8. Be2 {[%clk 0:04:14.9]}
8... Nge7 {[%clk 0:04:23.5]} 9. O-O {[%clk 0:04:07.4]} 9... Nf5 {[%clk
0:04:14.8]} 10. Be3 {[%clk 0:04:05.6]} 10... Qxb2 {[%clk 0:04:04]} 11. Nb5
{[%clk 0:03:58.8]} 11... O-O-O {[%clk 0:03:44.3]} 12. Rb1 {[%clk 0:03:51.9]}
12... Qxa2 {[%clk 0:03:39.2]} 13. Ra1 {[%clk 0:03:44.7]} 13... Qb2 {[%clk
0:03:37.1]} 14. Nxa7+ {[%clk 0:03:32.2]} 14... Nxa7 {[%clk 0:03:30.3]} 15. Rxa7
{[%clk 0:03:30.8]} 15... Bc6 {[%clk 0:03:14.4]} 16. Qd3 {[%clk 0:03:19.8]} 16...
Qb6 {[%clk 0:02:47.7]} 17. Ra2 {[%clk 0:03:11.7]} 17... Be7 {[%clk 0:02:30.8]}
18. Rb1 {[%clk 0:03:09.9]} 18... Qc7 {[%clk 0:02:22.7]} 19. Bd2 {[%clk
0:03:03.6]} 19... Qb8 {[%clk 0:01:41.6]} 20. Ba5 {[%clk 0:02:54.2]} 20... Rde8
{[%clk 0:01:37.4]} 21. Rc2 {[%clk 0:02:43.2]} 21... Kd7 {[%clk 0:01:34.8]} 22.
Rxc6 {[%clk 0:02:35.3]} 1-0

[Event "Live Chess"]
[Site "Chess.com"]
[Date "2023.05.21"]
[Round "-"]
[White "Brooms1989"]
[Black "JanMur7"]
[Result "0-1"]
[WhiteElo "1132"]
[BlackElo "1968"]
[TimeControl "300"]
[EndTime "3:30:51 PDT"]
[Termination "JanMur7 won by resignation"]

1. e4 {[%clk 0:04:57.3]} 1... e5 {[%clk 0:04:59.2]} 2. Nc3 {[%clk 0:04:55.2]}
2... Nf6 {[%clk 0:04:58.2]} 3. f4 {[%clk 0:04:53.4]} 3... d5 {[%clk 0:04:57.8]}
4. fxe5 {[%clk 0:04:52.2]} 4... Nxe4 {[%clk 0:04:57.3]} 5. Nxe4 {[%clk
0:04:51.8]} 5... dxe4 {[%clk 0:04:57.2]} 6. Bc4 {[%clk 0:04:49.7]} 6... e3
{[%clk 0:04:53.2]} 7. dxe3 {[%clk 0:04:46.1]} 7... Qh4+ {[%clk 0:04:52.1]} 8. g3
{[%clk 0:04:42.2]} 8... Qxc4 {[%clk 0:04:51.3]} 9. b3 {[%clk 0:04:40.8]} 9...
Qe4 {[%clk 0:04:46]} 10. Bb2 {[%clk 0:04:18]} 10... Qxh1 {[%clk 0:04:41.3]} 11.
Qd2 {[%clk 0:04:09.3]} 11... Qxg1+ {[%clk 0:04:38.6]} 12. Ke2 {[%clk 0:04:09]}
12... Qg2+ {[%clk 0:04:38.1]} 13. Kd3 {[%clk 0:04:06.4]} 13... Qxd2+ {[%clk
0:04:38]} 14. Kxd2 {[%clk 0:04:05.1]} 14... Nc6 {[%clk 0:04:37.4]} 15. Rd1
{[%clk 0:04:04.6]} 15... Bg4 {[%clk 0:04:35.5]} 16. Re1 {[%clk 0:04:02.2]} 16...
O-O-O+ {[%clk 0:04:35.1]} 0-1

[Event "Live Chess"]
[Site "Chess.com"]
[Date "2023.05.21"]
[Round "-"]
[White "GMMickeyAdams"]
[Black "Sweet-O"]
[Result "1-0"]
[WhiteElo "2794"]
[BlackElo "1422"]
[TimeControl "300"]
[EndTime "3:30:57 PDT"]
[Termination "GMMickeyAdams won by resignation"]

1. e4 {[%clk 0:04:55.7]} 1... e5 {[%clk 0:04:59]} 2. Nf3 {[%clk 0:04:53.4]} 2...
Nf6 {[%clk 0:04:58.9]} 3. Nc3 {[%clk 0:04:51.4]} 3... Bc5 {[%clk 0:04:57]} 4.
Nxe5 {[%clk 0:04:48.7]} 4... Nc6 {[%clk 0:04:55.9]} 5. Nf3 {[%clk 0:04:46.3]}
5... O-O {[%clk 0:04:52.7]} 6. d4 {[%clk 0:04:43.3]} 6... Bb6 {[%clk 0:04:51.1]}
7. e5 {[%clk 0:04:38]} 7... Ne8 {[%clk 0:04:46.8]} 8. Bd3 {[%clk 0:04:34.2]}
8... d6 {[%clk 0:04:45.5]} 9. Bxh7+ {[%clk 0:04:20.8]} 9... Kxh7 {[%clk
0:04:37.2]} 10. Ng5+ {[%clk 0:04:19.1]} 10... Kg8 {[%clk 0:04:35.9]} 11. Qd3
{[%clk 0:04:10.4]} 11... g6 {[%clk 0:04:26.3]} 12. e6 {[%clk 0:04:09.3]} 12...
Nxd4 {[%clk 0:04:20.6]} 13. exf7+ {[%clk 0:03:58.3]} 13... Kg7 {[%clk
0:04:09.5]} 14. Be3 {[%clk 0:03:50.6]} 14... Nf5 {[%clk 0:03:48.6]} 15. Nce4
{[%clk 0:03:47.6]} 15... Nf6 {[%clk 0:03:41.2]} 16. Qc3 {[%clk 0:03:33]} 16...
Bxe3 {[%clk 0:03:34.2]} 17. fxe3 {[%clk 0:03:31.4]} 17... d5 {[%clk 0:03:30.4]}
18. Nxf6 {[%clk 0:03:29.8]} 18... Qxf6 {[%clk 0:03:28.9]} 19. Qxf6+ {[%clk
0:03:28.6]} 19... Kxf6 {[%clk 0:03:28.8]} 20. Nh7+ {[%clk 0:03:27.6]} 20... Kxf7
{[%clk 0:03:23.9]} 21. Nxf8 {[%clk 0:03:26.8]} 21... Kxf8 {[%clk 0:03:23.8]} 22.
O-O {[%clk 0:03:25.6]} 22... Kg7 {[%clk 0:03:18.3]} 23. Rae1 {[%clk 0:03:23.3]}
23... Bd7 {[%clk 0:03:14.1]} 24. e4 {[%clk 0:03:22.2]} 24... dxe4 {[%clk
0:03:11.9]} 25. Rxe4 {[%clk 0:03:21.7]} 25... Re8 {[%clk 0:03:08.3]} 26. Rxe8
{[%clk 0:03:20]} 26... Bxe8 {[%clk 0:03:08.2]} 27. Rd1 {[%clk 0:03:17.3]} 27...
Ne3 {[%clk 0:03:03.9]} 28. Re1 {[%clk 0:03:15.3]} 28... Nxg2 {[%clk 0:02:52.3]}
29. Kxg2 {[%clk 0:03:12]} 29... Bf7 {[%clk 0:02:50.4]} 30. Re7 {[%clk
0:03:09.1]} 30... Kf6 {[%clk 0:02:48.2]} 31. Rxc7 {[%clk 0:03:07.7]} 31... Bxa2
{[%clk 0:02:47.4]} 32. b3 {[%clk 0:03:06.2]} 1-0

[Event "Live Chess"]
[Site "Chess.com"]
[Date "2023.05.21"]
[Round "-"]
[White "HoarseyHorsey"]
[Black "ameetghasi100"]
[Result "0-1"]
[WhiteElo "1453"]
[BlackElo "2615"]
[TimeControl "300"]
[EndTime "3:31:03 PDT"]
[Termination "ameetghasi100 won by resignation"]

1. d4 {[%clk 0:04:58.3]} 1... c5 {[%clk 0:04:59.5]} 2. d5 {[%clk 0:04:57.3]}
2... Nf6 {[%clk 0:04:59.2]} 3. c4 {[%clk 0:04:56.3]} 3... d6 {[%clk 0:04:58.1]}
4. Nc3 {[%clk 0:04:55.6]} 4... Nbd7 {[%clk 0:04:57.9]} 5. Nf3 {[%clk 0:04:54.5]}
5... g6 {[%clk 0:04:57.8]} 6. Nd2 {[%clk 0:04:53.4]} 6... Bg7 {[%clk 0:04:57.2]}
7. e4 {[%clk 0:04:52.8]} 7... O-O {[%clk 0:04:57.1]} 8. Be2 {[%clk 0:04:51.8]}
8... e5 {[%clk 0:04:56.8]} 9. O-O {[%clk 0:04:48.5]} 9... a6 {[%clk 0:04:55.9]}
10. Ndb1 {[%clk 0:04:45.3]} 10... b5 {[%clk 0:04:51.4]} 11. cxb5 {[%clk
0:04:44.1]} 11... axb5 {[%clk 0:04:50.2]} 12. Bxb5 {[%clk 0:04:40.6]} 12... Nb6
{[%clk 0:04:48.3]} 13. f3 {[%clk 0:04:33.8]} 13... Ba6 {[%clk 0:04:45.6]} 14.
Bg5 {[%clk 0:04:27]} 14... Bxb5 {[%clk 0:04:43.5]} 15. Nxb5 {[%clk 0:04:25.5]}
15... Nc4 {[%clk 0:04:43.4]} 16. N1c3 {[%clk 0:04:21.3]} 16... h6 {[%clk
0:04:40.6]} 17. Bd2 {[%clk 0:04:19]} 17... Qb6 {[%clk 0:04:37.2]} 18. Bc1 {[%clk
0:04:06.3]} 18... Ra5 {[%clk 0:04:34.6]} 19. a4 {[%clk 0:04:04.5]} 19... Rfa8
{[%clk 0:04:22.2]} 20. b3 {[%clk 0:04:03.1]} 20... Rxb5 {[%clk 0:04:12.6]} 21.
axb5 {[%clk 0:03:59.1]} 21... Rxa1 {[%clk 0:04:08.5]} 22. Qc2 {[%clk 0:03:57.2]}
22... Na5 {[%clk 0:04:02.1]} 23. Bb2 {[%clk 0:03:45.9]} 23... c4+ {[%clk
0:03:59.3]} 0-1

[Event "Live Chess"]
[Site "Chess.com"]
[Date "2023.05.21"]
[Round "-"]
[White "ItsNot_Jasper"]
[Black "CheckThis4"]
[Result "0-1"]
[WhiteElo "1373"]
[BlackElo "2496"]
[TimeControl "300"]
[EndTime "3:31:21 PDT"]
[Termination "CheckThis4 won by resignation"]

1. d4 {[%clk 0:04:53.3]} 1... Nf6 {[%clk 0:04:58.2]} 2. c4 {[%clk 0:04:46.7]}
2... e5 {[%clk 0:04:53.7]} 3. dxe5 {[%clk 0:04:41.8]} 3... Ng4 {[%clk
0:04:51.5]} 4. Nf3 {[%clk 0:04:38.9]} 4... Bc5 {[%clk 0:04:42.6]} 5. e3 {[%clk
0:04:32.9]} 5... Nc6 {[%clk 0:04:41]} 6. Nc3 {[%clk 0:04:24.6]} 6... O-O {[%clk
0:04:34.8]} 7. Be2 {[%clk 0:04:22.8]} 7... Ncxe5 {[%clk 0:04:28.9]} 8. Nxe5
{[%clk 0:04:21.6]} 8... Nxe5 {[%clk 0:04:28.7]} 9. O-O {[%clk 0:04:20.8]} 9...
Re8 {[%clk 0:04:26.9]} 10. b3 {[%clk 0:04:18]} 10... a5 {[%clk 0:04:25.6]} 11.
Bb2 {[%clk 0:04:13.2]} 11... Ra6 {[%clk 0:04:23.9]} 12. Nd5 {[%clk 0:03:56.7]}
12... Rh6 {[%clk 0:04:17.9]} 13. Bxe5 {[%clk 0:03:29.6]} 13... Rxe5 {[%clk
0:04:15.6]} 14. Nf4 {[%clk 0:03:29.3]} 14... Qh4 {[%clk 0:04:07.6]} 15. h3
{[%clk 0:03:01.9]} 15... d6 {[%clk 0:03:49.3]} 16. Bg4 {[%clk 0:02:58.1]} 16...
Bxg4 {[%clk 0:03:42.2]} 17. Qxg4 {[%clk 0:02:56.6]} 17... Qxg4 {[%clk 0:03:37]}
18. hxg4 {[%clk 0:02:55.8]} 18... Rh4 {[%clk 0:02:50.8]} 19. g3 {[%clk
0:02:23.9]} 19... Rxg4 {[%clk 0:02:46.5]} 20. Kg2 {[%clk 0:02:22.8]} 20... Re8
{[%clk 0:02:39.8]} 21. Rh1 {[%clk 0:02:17.4]} 21... Rg5 {[%clk 0:02:32.8]} 22.
Rh4 {[%clk 0:02:09.6]} 22... c6 {[%clk 0:02:28.8]} 23. Rah1 {[%clk 0:02:07.7]}
23... h6 {[%clk 0:02:27.1]} 24. Rh5 {[%clk 0:02:03.4]} 24... Rxh5 {[%clk
0:02:22.8]} 25. Rxh5 {[%clk 0:02:03.3]} 25... Re5 {[%clk 0:02:17.5]} 26. Rxe5
{[%clk 0:01:59.9]} 26... dxe5 {[%clk 0:02:16.6]} 27. Nd3 {[%clk 0:01:59.8]}
27... Bd6 {[%clk 0:02:15.8]} 28. f4 {[%clk 0:01:55.3]} 28... exf4 {[%clk
0:02:14.3]} 29. gxf4 {[%clk 0:01:55.2]} 29... f5 {[%clk 0:02:10.8]} 30. Nf2
{[%clk 0:01:45]} 30... Kf7 {[%clk 0:02:07.9]} 31. Nh3 {[%clk 0:01:42.4]} 31...
Kf6 {[%clk 0:02:07.1]} 32. Kf3 {[%clk 0:01:41.5]} 32... g5 {[%clk 0:02:05.8]}
33. fxg5+ {[%clk 0:01:40.3]} 33... hxg5 {[%clk 0:02:05.7]} 34. Nf2 {[%clk
0:01:35.3]} 34... g4+ {[%clk 0:02:05]} 35. Kg2 {[%clk 0:01:34.9]} 35... Ke5
{[%clk 0:02:02.9]} 36. Kg3 {[%clk 0:01:27.5]} 36... b5 {[%clk 0:01:54.8]} 37. a4
{[%clk 0:01:11]} 37... bxa4 {[%clk 0:01:41]} 38. bxa4 {[%clk 0:01:08.5]} 38...
Bb8 {[%clk 0:01:39.5]} 39. Nxg4+ {[%clk 0:00:45.7]} 39... fxg4 {[%clk
0:01:36.6]} 40. Kxg4 {[%clk 0:00:45.4]} 40... Ke4 {[%clk 0:01:36]} 41. Kg5
{[%clk 0:00:42.7]} 41... Kxe3 {[%clk 0:01:35.3]} 42. Kf6 {[%clk 0:00:42.3]}
42... Kd4 {[%clk 0:01:34.4]} 43. Ke6 {[%clk 0:00:41]} 43... Kxc4 {[%clk
0:01:33.6]} 44. Kf5 {[%clk 0:00:39.6]} 44... Kb4 {[%clk 0:01:32.4]} 45. Ke4
{[%clk 0:00:39.2]} 45... Kxa4 {[%clk 0:01:31.4]} 46. Kd3 {[%clk 0:00:38.9]}
46... Kb5 {[%clk 0:01:31]} 47. Kc3 {[%clk 0:00:37.9]} 47... a4 {[%clk
0:01:30.9]} 48. Kb2 {[%clk 0:00:37.2]} 48... c5 {[%clk 0:01:30.8]} 49. Ka2
{[%clk 0:00:37.1]} 49... c4 {[%clk 0:01:30.3]} 50. Ka3 {[%clk 0:00:36.7]} 50...
Bd6+ {[%clk 0:01:29.8]} 51. Kb2 {[%clk 0:00:36.6]} 51... Kb4 {[%clk 0:01:29.3]}
52. Kc2 {[%clk 0:00:36.1]} 52... a3 {[%clk 0:01:29]} 53. Kb1 {[%clk 0:00:35.5]}
53... Be5 {[%clk 0:01:27.8]} 54. Ka2 {[%clk 0:00:35.4]} 54... Bf6 {[%clk
0:01:26.4]} 55. Kb1 {[%clk 0:00:34.9]} 55... Kb3 {[%clk 0:01:25.8]} 56. Kc1
{[%clk 0:00:33.3]} 0-1